Cogmind - Beta 11 *** ADVENTURER MODE // 2022.04.16 @ 18:11:20 Player: Ms Vella Result: Destroyed by as-04015 with Assembled F-torch Performance ------------- Evolutions (0) 0 Regions Visited (2) 400 Robots Destroyed (13) 65 Value Destroyed (236) 236 Prototype IDs (0) 0 Alien Tech Used (0) 0 Bonus (0) 0 TOTAL SCORE: 701 Bonus ------- None Cogmind --------- Core Integrity 0/250 Matter 300/300 Energy 100/100 System Corruption 2% Temperature Cool (20) Movement Core (350) Ox6 Location -10/Mines Parts ------- > --- POWER (1) -------- (None) > --- PROPULSION (2) --- (None) > --- UTILITY (2) ------ Large Storage Unit > --- WEAPON (2) ------- (None) > --- INVENTORY (15) --- Ion Engine Light Deuterium Engine Heat Sink Large Storage Unit Improved Light Armor Plating Assault Rifle Light Assault Rifle Light Assault Rifle Peak State ------------ > --- POWER ------------ Light Deuterium Engine > --- PROPULSION ------- Light Treads Light Treads > --- UTILITY ---------- Large Storage Unit Power Shielding > --- WEAPON ----------- Beam Cannon Light Cannon > --- INVENTORY -------- Ion Engine Light Deuterium Engine Heat Sink Large Storage Unit Improved Light Armor Plating Assault Rifle Light Assault Rifle Light Assault Rifle [Rating: 10] Favorites ----------- Power Ion Engine Engine Ion Engine Propulsion Light Treads Treads Light Treads Leg Aluminum Leg Utility Power Shielding Storage Large Storage Unit Protection Power Shielding Weapon Light Cannon Energy Cannon Beam Cannon Ballistic Gun Assault Rifle Ballistic Cannon Light Cannon Build | -11 -10 -10 ------- Run | Scr Mat Min Slots Evolved . | . . . Power . | . . . Propulsion . | . . . Utility . | . . . Weapon . | . . . Parts Attached 7 | 2 4 1 Power 1 | . . 1 Engine 1 | . . 1 Core . | . . . Reactor . | . . . Propulsion 2 | 2 . . Treads 2 | 2 . . Leg . | . . . Wheel . | . . . Hover . | . . . Flight . | . . . Utility 2 | . 2 . Device . | . . . Storage 1 | . 1 . Processor . | . . . Hackware . | . . . Protection 1 | . 1 . Artifact . | . . . Weapon 2 | . 2 . Energy Gun . | . . . Energy Cannon 1 | . 1 . Ballistic Gun . | . . . Ballistic Cannon 1 | . 1 . Launcher . | . . . Special Weapon . | . . . Impact Weapon . | . . . Slashing Weapon . | . . . Piercing Weapon . | . . . Special Melee Weapon . | . . . Unidentified Prototypes . | . . . Parts Lost 6 | . . 6 Power 1 | . . 1 Propulsion 2 | . . 2 Utility 1 | . . 1 Weapon 2 | . . 2 Highest Loss Streak 6 | . . 6 To Critical Strikes . | . . . Average Slot Usage (%) 93 | . 91 94 Engine 13 | . 14 13 Treads 26 | . 28 25 Storage 14 | . 14 14 Protection 10 | . 5 13 Energy Cannon 8 | . 3 13 Ballistic Gun 4 | . 11 . Ballistic Cannon 12 | . 13 12 Naked Turns . | . . . Heaviest Build 32 | 13 32 32 Greatest Support 40 | 40 40 40 Greatest Overweight (x) 8 | . . 8 Average Overweight (x) . | . . . Largest Inventory Capacity 15 | 8 15 15 Average Capacity 12 | 8 10 15 Most Carried 8 | 6 6 8 Average Carried 5 | 3 3 6 Final Capacity 15 | 8 15 15 Final Carried 8 | 1 6 8 Class Distribution -------------------- 100% | Mutant Dominant Class ---------------- Mutant | -10/Materials Mutant | -10/Mines Resources | -11 -10 -10 ----------- Run | Scr Mat Min Matter Collected 335 | 200 37 98 Remotely . | . . . Salvage Created 315 | . 43 272 Parts 34 | . 4 30 Haulers Intercepted . | . . . Recyclers Shooed . | . . . Parts Field Recycled . | . . . Retrieved Matter . | . . . Parts Self-Destructed . | . . . Prevented . | . . . Kills | -11 -10 -10 ------- Run | Scr Mat Min Combat Hostiles Destroyed 12 | . 1 11 Cannons 12 | . 1 11 Classes Destroyed 4 | . 1 3 Recycler 1 | . . 1 Swarmer 9 | . . 9 Grunt 1 | . 1 . Demolisher 2 | . . 2 Best Kill Streak 6 | . 1 6 Combat Bots Only 6 | . 1 6 Max Kills in Single Turn 1 | . 1 1 Gunslinging . | . . . Exploded . | . . . Melee . | . . . Uniques/NPCs Destroyed . | . . . Combat | -11 -10 -10 -------- Run | Scr Mat Min Damage Taken 933 | . 26 907 Core 252 | . . 252 Absorbed by Shields . | . . . Redirected to Shielding 20 | . . 20 Core Remaining (%) 100 | 100 . . Volleys Fired 18 | . 1 17 Largest 2 | . 2 2 Hottest 95 | . 55 95 Shots Fired 36 | . 2 34 Gun 1 | . 1 . Cannon 35 | . 1 34 Launcher . | . . . Special . | . . . Kinetic 19 | . 2 17 Thermal 17 | . . 17 Explosive . | . . . Electromagnetic . | . . . Robot Hit Streak 7 | . 2 7 Robot Miss Streak 2 | . . 2 Penetration Max . | . . . Secondary Targets . | . . . Shots Hit Robots 24 | . 2 22 Core Hits 17 | . 1 16 Critical Kills . | . . . Critical Parts Destroyed . | . . . Critical Strikes 1 | . . 1 Blast 1 | . . 1 Melee Attacks . | . . . Impact . | . . . Slashing . | . . . Piercing . | . . . Sneak Attacks . | . . . Combat Hostiles . | . . . Follow-up Attacks . | . . . Damage Inflicted 445 | . 30 415 Guns 15 | . 15 . Cannons 430 | . 15 415 Explosions . | . . . Melee . | . . . Ramming . | . . . Kinetic 233 | . 30 203 Thermal 212 | . . 212 Explosive . | . . . Electromagnetic . | . . . Impact . | . . . Slashing . | . . . Piercing . | . . . Highest Corruption 2 | . . 2 Average Corruption 2 | . . 2 Corruption Purged . | . . . Corruption Blocked . | . . . Effects 1 | . . 1 Message Errors 1 | . . 1 Overload Shots . | . . . Overflow Damage . | . . . Projectiles . | . . . Explosions . | . . . Melee . | . . . Knockbacks 1 | . . 1 Impact . | . . . Kinetic 1 | . . 1 Secondary . | . . . Self-Inflicted Damage . | . . . Shots . | . . . Rammed . | . . . Targets Rammed . | . . . Kicked . | . . . Crushed . | . . . Highest Temperature 231 | . . 231 Average Temperature 91 | . . 91 Received Heat Transfer 221 | . 21 200 Siege Activations . | . . . Robots Corrupted . | . . . Combat Hostiles . | . . . Parts Fried . | . . . Impact Corruptions . | . . . Robots Melted . | . . . Combat Hostiles . | . . . Parts Melted . | . . . Heat Transferred 444 | . . 444 Parts Sabotaged . | . . . Parts Stolen . | . . . Parts Stripped . | . . . Power Chain Reactions . | . . . Missiles Intercepted . | . . . Alert | -11 -10 -10 ------- Run | Scr Mat Min Peak Influence 289 | . 30 289 Initial 9 | . . 9 Average 125 | . 11 216 Maximum Alert Level 1 | . . 1 Low Security (%) 53 | 100 100 15 Level 1 46 | . . 84 Level 2 . | . . . Level 3 . | . . . Level 4 . | . . . Level 5 . | . . . High Security . | . . . Max Security . | . . . Squads Dispatched . | . . . Investigation . | . . . Extermination . | . . . Reinforcement . | . . . Assault . | . . . Garrison . | . . . Intercept . | . . . Searches Triggered . | . . . Construction Impeded . | . . . Haulers Reinforced . | . . . Active Scanning Responses . | . . . Cargo Convoy Interrupts . | . . . Stealth | -11 -10 -10 --------- Run | Scr Mat Min Distress Signals 1 | . 1 . Communications Jammed . | . . . Distress Signals . | . . . Times Spotted 20 | . 6 14 Peak Tracking Total 5 | . 5 4 Tactical Retreats . | . . . Traps | -11 -10 -10 ------- Run | Scr Mat Min Traps Triggered . | . . . Indirectly . | . . . Trap Hack Attempts . | . . . Triggered . | . . . Disarmed . | . . . Reprogrammed . | . . . Reused . | . . . Traps Extracted . | . . . Installed . | . . . Triggered . | . . . Machines | -11 -10 -10 ---------- Run | Scr Mat Min Machines Disabled . | . . . Max in Single Turn . | . . . Machines Sabotaged . | . . . Garrisons Compromised . | . . . Overloaded Fab Kills . | . . . Hacking | -11 -10 -10 --------- Run | Scr Mat Min Machines Accessed 2 | . 2 . Terminals 2 | . 2 . Fabricators . | . . . Repair Stations . | . . . Recycling Units . | . . . Scanalyzers . | . . . Garrison Access . | . . . Total Hacks 3 | . 3 . Successful 3 | . 3 . Failed . | . . . Catastrophic . | . . . Database Lockouts . | . . . Manual 1 | . 1 . Terminals 3 | . 3 . Fabricators . | . . . Repair Stations . | . . . Recycling Units . | . . . Scanalyzers . | . . . Garrison Access . | . . . Terminal Hacks 2 | . 2 . Branch Access Points 1 | . 1 . Unreport Threat 1 | . 1 . Fabricator Hacks . | . . . Repair Station Hacks . | . . . Recycling Unit Hacks . | . . . Scanalyzer . | . . . Garrison Access Hacks . | . . . Unauthorized Hacks 1 | . 1 . Terminals 1 | . 1 . Botnet 1 | . 1 . Fabricators . | . . . Repair Stations . | . . . Recycling Units . | . . . Scanalyzers . | . . . Garrison Access . | . . . Data Cores Recovered . | . . . Used . | . . . Hacking Detections 1 | . 1 . Full Trace Events . | . . . Feedback Events . | . . . Feedback Blocked . | . . . Robot Schematics Acquired . | . . . Robots Built . | . . . Authchips . | . . . Time . | . . . Total Robot Build Rating . | . . . Part Schematics Acquired . | . . . Parts Built . | . . . Authchips . | . . . Time . | . . . Total Part Build Rating . | . . . Parts Repaired . | . . . Time . | . . . Parts Recycled . | . . . Recycled Matter . | . . . Retrieved Matter . | . . . Retrieved Components . | . . . Parts Scanalyzed . | . . . Part Schematics Acquired . | . . . Parts Damaged . | . . . Bothacking | -11 -10 -10 ------------ Run | Scr Mat Min Used RIF Installer . | . . . Robots Hacked . | . . . Non-combat . | . . . Combat . | . . . Robot Hacks Applied . | . . . Relay Couplers Released . | . . . Fabnet Peak Effective % . | . . . Robots Rewired . | . . . Allies Hacked . | . . . Hacks Repelled . | . . . Allies | -11 -10 -10 -------- Run | Scr Mat Min Total Allies . | . . . Largest Group . | . . . Highest-Rated Group . | . . . Highest-Rated Ally . | . . . Total Orders . | . . . Ally Attacks . | . . . Total Damage . | . . . Kills . | . . . Allies Corrupted . | . . . Allies Melted . | . . . Intel | -11 -10 -10 ------- Run | Scr Mat Min Robot Analysis Total . | . . . Derelict Logs Recovered . | . . . Drone Launches . | . . . Drone Recoveries . | . . . Exploration | -11 -10 -10 ------------- Run | Scr Mat Min Turns Passed 593 | 5 259 329 Spaces Moved 316 | 1 154 161 Core 3 | . . 3 Treads 313 | 1 154 158 Legs . | . . . Wheels . | . . . Hover . | . . . Flight . | . . . Fastest Speed 160 | 160 160 160 Average Speed 164 | 160 160 169 Slowest Speed 450 | 160 160 450 Overloaded Moves . | . . . Propulsion Burnouts . | . . . Robots Hopped . | . . . Cave-ins Triggered . | . . . Exploration Rate (%) 24 | 1 36 35 Regions Visited 2 Branch Regions 1 Pre-discovered Areas . | . . . Known Exits Taken 1 | . 1 . Unknown Exits Taken 1 | 1 . . Scrap Searched . | . . . Spaces Dug . | . . . Terrain Destroyed 1 | . . 1 Melee . | . . . Projectile 1 | . . 1 AOE . | . . . Terrain Rammed . | . . . Walls Destroyed . | . . . Machines Disabled . | . . . Actions | -11 -10 -10 --------- Run | Scr Mat Min Total 353 | 7 164 182 Wait . | . . . Move 314 | . 153 161 Hop . | . . . Pick Up 5 | . 3 2 Fast Attach 4 | . 3 1 Attach 2 | 2 . . Detach 2 | . 2 . Swap 1 | . 1 . Drop 7 | 5 1 1 Fire 18 | . 1 17 Melee . | . . . Ram . | . . . Kick . | . . . Crush . | . . . Escape Stasis . | . . . Rewire . | . . . Trap . | . . . Miscellaneous . | . . . Route ------- -11/Scrapyard -10/Materials (discovered 2 exits: *Min x2) -10/Mines (discovered 2 exits: [*Mat x2]) History --------- Turn | Location | Event 6 | -11/Scrapyard | Discovered new exit (range 0) 6 | -11/Scrapyard | Entered Materials 28 | -10/Materials | Identified exit to Mines 265 | -10/Materials | Entered Mines 296 | -10/Mines | Discovered new exit (range 7) 304 | -10/Mines | Build established: Mutant 342 | -10/Mines | Discovered new exit (range 12) 343 | -10/Mines | Met a Derelict bent on vengeance 482 | -10/Mines | Assembled infested the area 562 | -10/Mines | Core integrity fell below 50% 591 | -10/Mines | Core integrity fell below 20% 594 | -10/Mines | Destroyed by as-04015 with Assembled F-torch Last Messages --------------- 00549_ U-05 Engineer builds a Wall. 00551_ as-44315 sneak attacks. 00551_ R-06 Scavenger system corrupted by crushing effect. 00551_ as-76391 sneak attacks. 00551_ R-06 Scavenger destroyed. 00552_ K-01 Serf collects debris. 00556_ K-01 Serf destroyed. 00556_ Lgt. Cannon destroyed. 00556_ Lgt. Treads destroyed. 00563_ as-76391 sneak attacks. 00566_ U-05 Engineer system corrupted by crushing effect. 00566_ T-07 Excavator destroyed. 00567_ U-05 Engineer system terminally corrupted. 00573_ Beam Cannon destroyed. 00576_ as-87305 sneak attacks. 00580_ Lgt. Treads destroyed. 00580_ System corrupted by crushing effect (+2). 00588_ Power Shielding destroyed. 00588_ Lgt. Deuterium Engine destroyed. 00591_ 6#MJCQ60&>>QV=6RRW7A|P8HVL BI Map ----- +----------------------------------------------------+ | | | | | | | | | | | | | | | | | | | | | | | | | | | | | ?????????????????????????????????????????????????? | | ?????????????????????????????????????????????????? | | ????????????????####??####???????????????????????? | | ???????????????## #### ##??????????????????????? | | ???????????????# ##????????????#########? | | ???????????????# ######???????# = #? | | ???????????????# ######### %[#? | | #??????????????# ## """[= #? | | #??????????????# #### """ = #? | | #??????????????# ##??# ### < #### """*%=#? | | #??????????????###???# ##?### ##??# = #? | | #??####??????????????# @#????## ##???# #? | | #??# ##????????????##aaa#?????# #????# #? | | #??# ###??????####?## #????# #???##### ##? | | ##??# ##???### ##?# #???# #?####### #?? | | ##??# ##### ### #???# ##?# # #?? | | ##??# ! ## #???# ##??# < #?? | | #### = %! % #???# ##???# ## #?? | | # % *%= ## ###???###?????# ## #?? | | ## * %!*%### #### #?????????????# % [ #?? | | ##=% %##?#####??# #?????????###?# %%####?? | | !% !%##?????????# #???####### #####%##????? | | # #??????????# ??? ####*###???? | | # #?????????# ###??????# [##=== ##??? | | # *= #???????# #????????# * #??? | | ## [=! #??????# #????????## [ #??? | | #####![%## ###?????? #?????????##% * ##??? | | ????# =#######???????? ??????????###### ##???? | | ????# %#?????????????? ???????????????## #????? | | ????# ?????????????? ????????????????# #????? | | ????# ????????????? ????????????????# #????? | | ???? ????????????? ????????????????? #????? | | ???? ???????????? ????????????????? #????? | | ??? ??????????? ????????????????? ##????? | | ???? ???????????? ????????????????? #?????? | | ???? ????????????? ????????????????? #?????? | +----------------------------------------------------+ Best States ------------- Heat Dissipation 25 Energy Generation 14 Energy Capacity 250 Matter Stores 300 Matter Capacity 300 Sight Range 16 Terrain Scan Density 10 Resistance: KI 20 Resistance: TH 20 Resistance: EX 20 Resistance: EM 20 Resistance: I 20 Resistance: S 20 Resistance: P 20 Power Shielding 33 Evasion (%) 40 Recoil Reduction 2 Offensive Hacking 10 Item Schematics ----------------- None Robot Schematics ------------------ None Fabricated ------------ Nothing Alien Tech Used ----------------- None Achievements -------------- None Challenges ------------ None Game ------ Seed ControlRecyclingPick Manual? 0 Play Time 00:09:08 Cumulative 892.0 hours Start 2022.04.16 @ 18:01:31 End 2022.04.16 @ 18:11:20 Sessions 1 Manual Loads 0 Difficulty Adventurer Special Mode None Game No. 187 Rogue 1 Adventurer 186 Explorer 0 Win Type - Total 3 Types 3/0/0/0/0/0/0/0/0 Lore% 68 Gallery% 81 Achievement% 64 Wizard Run 0 Options --------- ASCII 0 Keyboard 0 Movement Mouse Keybinds 0 Fullscreen 0 Font 16/SmallcapsGlow Map View 76x50 Tactical HUD 1 Map Filters NONE Filters BRIGHTNESS(125)|SATURATION(75)|LOW_CONTRAST(13,24,33)|SHIFT_HUE(130) Steam 1 RUN: fa297981-37a6-4283-9f70-940763bb0c71